fUSD/lending_fUSD_20260621
["ID","MTS","AMOUNT","RATE_DAILY","PERIOD"]
[425966111,1782051043000,-151.0,0.00020674,2]
[425966101,1782051043000,-152.0,0.00020674,2]
[425966102,1782051043000,-500.0,0.00020674,2]
[425966103,1782051043000,-151.0,0.00020674,2]
[425966106,1782051043000,-500.0,0.00020674,2]
[425966108,1782051043000,-279.8357851,0.00020674,2]
[425966105,1782051043000,-152.0,0.00020674,2]
[425966104,1782051043000,-500.0,0.00020674,2]
[425966117,1782051043000,-152.0,0.00020674,2]
[425966123,1782051043000,-151.0,0.00020674,2]
[425966138,1782051043000,-163.76126679,0.00020729,2]
[425966122,1782051043000,-500.0,0.00020674,2]
[425966121,1782051043000,-152.0,0.00020674,2]
[425966113,1782051043000,-500.0,0.00020674,2]
[425966120,1782051043000,-151.0,0.00020674,2]
[425966114,1782051043000,-500.0,0.00020674,2]
[425966116,1782051043000,-151.0,0.00020674,2]
[425966119,1782051043000,-500.0,0.00020674,2]
[425966118,1782051043000,-500.0,0.00020674,2]
[425966127,1782051043000,-151.0,0.00020674,2]
[425966136,1782051043000,-426.30302538,0.000207,2]
[425966126,1782051043000,-500.0,0.00020674,2]
[425966129,1782051043000,-152.0,0.00020674,2]
[425966124,1782051043000,-152.0,0.00020674,2]
[425966164,1782051043000,-151.0,0.00021114,2]
[425966112,1782051043000,-152.0,0.00020674,2]
[425966161,1782051043000,-151.0,0.00021059,2]
[425966203,1782051043000,-2000.0,0.00022033,7]
[425966193,1782051043000,-2178.35,0.00022,2]
[425966199,1782051043000,-347.0,0.00022,2]
[425966200,1782051043000,-506.0,0.00022,2]
[425966197,1782051043000,-440.0,0.00022,2]
[425966198,1782051043000,-157.0,0.00022,2]
[425966196,1782051043000,-240.0,0.00022,2]
[425966194,1782051043000,-151.0,0.00022,2]
[425966195,1782051043000,-156.0,0.00022,2]
[425966201,1782051043000,-192.0,0.00022,2]
[425966205,1782051043000,-440.0,0.00022158,2]
[425966191,1782051043000,-5000.0,0.00021918,2]
[425966204,1782051043000,-15366.90762046,0.00022143,2]
[425966209,1782051043000,-2236.95670847,0.00022318,2]
[425966206,1782051043000,-557.5788265,0.00022318,2]
[425966217,1782051043000,-2253.00941545,0.00022407,2]
[425966215,1782051043000,-2253.00941546,0.00022407,2]
[425966208,1782051043000,-1925.97826351,0.00022318,2]
[425966210,1782051043000,-157.2,0.00022353,2]
[425966214,1782051043000,-204.42,0.00022405,2]
[425966213,1782051043000,-694.27072191,0.00022398,2]
[425966216,1782051043000,-2253.00941545,0.00022407,2]
[425966211,1782051043000,-15161.93322289,0.00022363,2]
[425966162,1782051043000,-5537.27918479,0.000211,2]
[425966212,1782051043000,-1296.10005437,0.00022365,2]
[425966202,1782051043000,-173.0,0.00022,2]
[425966207,1782051043000,-156.84738482,0.00022318,2]
[425966183,1782051043000,-2088.37035378,0.00021736,2]
[425966192,1782051043000,-500.0,0.00021999,2]
[425966163,1782051043000,-602.06,0.000211,2]
[425966170,1782051043000,-159.51833467,0.00021222,2]
[425966169,1782051043000,-2080.17592889,0.00021222,2]
[425966166,1782051043000,-518.5,0.00021222,2]
[425966168,1782051043000,-9552.16786547,0.00021222,2]
[425966171,1782051043000,-151.0,0.00021224,2]
[425966173,1782051043000,-460.83,0.00021273,2]
[425966175,1782051043000,-12140.09,0.00021273,2]
[425966178,1782051043000,-5537.27918479,0.000213,2]
[425966177,1782051043000,-204.42,0.00021285,2]
[425966176,1782051043000,-151.0,0.00021279,2]
[425966167,1782051043000,-156.84738482,0.00021222,2]
[425966174,1782051043000,-819.4,0.00021273,2]
[425966189,1782051043000,-5537.27918479,0.000218,2]
[425966172,1782051043000,-2343.16,0.00021273,2]
[425966188,1782051043000,-3125.9822309,0.00021773,7]
[425966185,1782051043000,-156.84738482,0.0002177,2]
[425966184,1782051043000,-537.6845,0.0002177,2]
[425966187,1782051043000,-2157.14243826,0.0002177,2]
[425966181,1782051043000,-1579.25,0.0002161,2]
[425966186,1782051043000,-9905.59807649,0.0002177,2]
[425966190,1782051043000,-886.0,0.000218,2]
[425966180,1782051043000,-5537.27918479,0.000215,2]
[425966182,1782051043000,-305.93,0.00021644,4]
[425966179,1782051043000,-428.36,0.00021434,2]
[425966246,1782051044000,-500.0,0.00023927,2]
[425966236,1782051044000,-251.87,0.00023288,2]
[425966234,1782051044000,-1491.89,0.00023219,7]
[425966241,1782051044000,-426.30302538,0.00023433,2]
[425966243,1782051044000,-204.42,0.00023525,2]
[425966232,1782051044000,-506.0,0.00023,2]
[425966247,1782051044000,-500.0,0.00023927,2]
[425966249,1782051044000,-4358.7617394,0.00023928,2]
[425966248,1782051044000,-500.0,0.00023927,2]
[425966244,1782051044000,-441.89,0.000237,14]
[425966251,1782051044000,-599.9145414,0.00023928,2]
[425966250,1782051044000,-1579.7855955,0.00023928,2]
[425966253,1782051044000,-500.0,0.00023928,2]
[425966228,1782051044000,-240.0,0.00023,2]
[425966252,1782051044000,-500.0,0.00023928,2]
[425966245,1782051044000,-440.0,0.0002386,2]
[425966230,1782051044000,-165.98684029,0.00023,2]
[425966222,1782051044000,-578.20924309,0.00022866,2]
[425966239,1782051044000,-599.60298507,0.00023413,2]
[425966242,1782051044000,-15366.90762046,0.00023522,2]
[425966219,1782051044000,-602.06,0.000225,7]
[425966220,1782051044000,-1609.73100628,0.00022781,7]
[425966223,1782051044000,-156.84738483,0.00022866,2]
[425966218,1782051044000,-251.81,0.00022466,2]
[425966221,1782051044000,-2011.96462247,0.00022781,7]
[425966224,1782051044000,-2319.72410669,0.00022866,2]
[425966225,1782051044000,-500.0,0.00022999,2]
[425966226,1782051044000,-163.69833086,0.00023,2]
[425966238,1782051044000,-1799.0,0.00023326,5]
[425966231,1782051044000,-347.0,0.00023,2]
[425966233,1782051044000,-192.0,0.00023,2]
[425966237,1782051044000,-1864.0,0.00023326,5]
[425966229,1782051044000,-440.0,0.00023,2]
[425966235,1782051044000,-4229.5572,0.00023273,7]
[425966240,1782051044000,-2405.55389863,0.00023414,2]
[425966254,1782051044000,-500.0,0.00023928,2]
[425966227,1782051044000,-156.0,0.00023,2]
[425966268,1782051044000,-76583.39212359,0.00024,2]
[425966278,1782051044000,-6738.76,0.00024095,2]
[425966279,1782051044000,-162.791075,0.00024109,2]
[425966276,1782051044000,-15161.93322289,0.00024008,2]
[425966277,1782051044000,-2088.37035378,0.00024046,2]
[425966281,1782051044000,-500.0,0.00024173,2]
[425966289,1782051044000,-150.0,0.00024333,2]
[425966284,1782051044000,-6738.76,0.0002425,2]
[425966293,1782051044000,-6738.76,0.00024457,2]
[425966295,1782051044000,-3533.54358232,0.00024561,2]
[425966292,1782051044000,-6738.76,0.00024405,2]
[425966291,1782051044000,-6738.76,0.00024354,2]
[425966294,1782051044000,-6738.76,0.00024509,2]
[425966285,1782051044000,-6738.76,0.00024302,2]
[425966282,1782051044000,-6738.76,0.00024198,2]
[425966287,1782051044000,-157.2,0.00024324,2]
[425966280,1782051044000,-6738.76,0.00024147,2]
[425966270,1782051044000,-240.0,0.00024,2]
[425966256,1782051044000,-500.0,0.00023928,2]
[425966272,1782051044000,-347.0,0.00024,2]
[425966255,1782051044000,-500.0,0.00023928,2]
[425966258,1782051044000,-155.559837,0.00023928,2]
[425966266,1782051044000,-493.11231728,0.00023962,2]
[425966257,1782051044000,-510.252341,0.00023928,2]
[425966259,1782051044000,-153.164862,0.00023928,2]
[425966261,1782051044000,-76201.4885417,0.00023928,2]
[425966260,1782051044000,-151.0,0.00023928,2]
[425966263,1782051044000,-151.0,0.00023928,2]
[425966264,1782051044000,-151.0,0.00023928,2]
[425966262,1782051044000,-151.0,0.00023928,2]
[425966265,1782051044000,-148035.8133438,0.00023928,2]
[425966269,1782051044000,-156.0,0.00024,2]
[425966275,1782051044000,-602.06,0.00024,7]
[425966273,1782051044000,-506.0,0.00024,2]
[425966274,1782051044000,-192.0,0.00024,2]
[425966267,1782051044000,-795.525,0.00023973,5]
[425966271,1782051044000,-440.0,0.00024,2]
[425966297,1782051045000,-625.0,0.00024561,2]
[425966321,1782051046000,-6738.76,0.00024664,2]
[425966322,1782051046000,-4923.14610266,0.00024716,2]
[425966312,1782051046000,-714.27,0.00024561,2]
[425966311,1782051046000,-632.0,0.00015559,2]
[425966313,1782051046000,-1865.94641768,0.00024561,2]
[425966316,1782051046000,-204.42,0.00024646,2]
[425966314,1782051046000,-500.0,0.00024596,2]
[425966317,1782051046000,-1000.0,0.00024658,2]
[425966315,1782051046000,-6738.76,0.00024612,2]
[425966319,1782051046000,-158.27,0.00024658,2]
[425966320,1782051046000,-158.15,0.00024658,2]
[425966318,1782051046000,-175.27,0.00024658,2]
[425966327,1782051109000,1152.11,0.00029452,120]
[425966329,1782051238000,-4226.00380248,0.00011869,2]
[425966330,1782051271000,-1945.85619752,0.00011869,2]
[425966331,1782051273000,-1945.85619752,0.0001187,2]
[425966332,1782051308000,-4226.00380248,0.0001187,2]
[425966333,1782051325000,-4226.00380248,0.00011871,2]
[425966335,1782051357000,-1745.85619752,0.00011871,2]
[425966334,1782051357000,-200.0,0.00011257,2]
[425966336,1782051388000,-200.0,0.00011871,2]
[425966337,1782051388000,-1745.85619752,0.00011874,2]
[425966338,1782051392000,-166.66,0.0001157,2]
[425966339,1782051392000,-33.34,0.00011874,2]
[425966340,1782051421000,-200.0,0.00011874,2]
[425966341,1782051452000,-1090.67538531,0.00011874,2]
[425966343,1782051455000,-1090.67538531,0.00011874,2]
[425966344,1782051458000,-843.70869775,0.00011874,2]
[425966345,1782051461000,-843.70869775,0.00011874,2]
[425966346,1782051518000,-323.89563636,0.00011874,2]
[425966347,1782051520000,-323.89563636,0.00011878,2]
[425966348,1782051523000,-323.89563636,0.00011878,2]
[425966351,1782051525000,281.5787,0.000301,120]
[425966350,1782051525000,-173.89563636,0.00011877,2]
[425966349,1782051525000,-150.0,0.00011278,2]
[425966352,1782051579000,-2421.83817203,0.0001128,2]
[425966353,1782051582000,158.99,0.00011179,2]
[425966354,1782051597000,-664.09182797,0.0001128,2]
[425966355,1782051651000,-791.14857175,0.00011328,2]
[425966364,1782051652000,648.44928998,0.00011271,2]
[425966363,1782051652000,220.21822316,0.00011271,2]
[425966362,1782051652000,153.75,0.00011271,2]
[425966360,1782051652000,153.75,0.00011271,2]
[425966361,1782051652000,153.75,0.00011271,2]
[425966359,1782051652000,310.55993859,0.00011271,2]
[425966358,1782051652000,500.0,0.00011271,2]
[425966357,1782051652000,267.10592876,0.00011271,2]
[425966356,1782051652000,14.25479151,0.00011271,2]
[425966365,1782051669000,-791.14857175,0.00011328,2]
[425966366,1782051684000,-791.14857175,0.00011328,2]
[425966367,1782051702000,-712.48428475,0.00011328,2]
[425966368,1782051753000,-1582.297144,0.00011412,2]
[425966377,1782051762000,500.0,2.9e-05,3]
[425966369,1782051762000,46013.86160259,2.9e-05,3]
[425966370,1782051762000,50000.0,2.9e-05,3]
[425966373,1782051762000,236.52,2.9e-05,3]
[425966371,1782051762000,45593.05,2.9e-05,3]
[425966372,1782051762000,1318.79345772,2.9e-05,3]
[425966376,1782051762000,500.0,2.9e-05,3]
[425966374,1782051762000,205.38365089,2.9e-05,3]
[425966381,1782051762000,10000.0,2.9e-05,3]
[425966379,1782051762000,400.05721049,2.9e-05,3]
[425966378,1782051762000,500.0,2.9e-05,3]
[425966380,1782051762000,10000.0,2.9e-05,3]
[425966382,1782051762000,10000.0,2.9e-05,3]
[425966384,1782051762000,10000.0,2.9e-05,3]
[425966383,1782051762000,10000.0,2.9e-05,3]
[425966385,1782051762000,10000.0,2.9e-05,3]
[425966386,1782051762000,10000.0,2.9e-05,3]
[425966375,1782051762000,500.0,2.9e-05,3]
[425966390,1782051763000,10000.0,2.9e-05,3]
[425966387,1782051763000,10000.0,2.9e-05,3]
[425966389,1782051763000,10000.0,2.9e-05,3]
[425966392,1782051763000,10000.0,2.9e-05,3]
[425966388,1782051763000,10000.0,2.9e-05,3]
[425966391,1782051763000,10000.0,2.9e-05,3]
[425966397,1782051763000,10000.0,2.9e-05,3]
[425966396,1782051763000,10000.0,2.9e-05,3]
[425966395,1782051763000,10000.0,2.9e-05,3]
[425966394,1782051763000,10000.0,2.9e-05,3]
[425966400,1782051763000,4780.35982649,2.9e-05,3]
[425966399,1782051763000,10000.0,2.9e-05,3]
[425966398,1782051763000,10000.0,2.9e-05,3]
[425966393,1782051763000,10000.0,2.9e-05,3]
[425966401,1782051808000,-1222.08739994,0.0001147,2]
[425966402,1782051822000,-1653.86808024,0.0001147,2]
[425966412,1782051838000,-209.97451982,0.0001147,2]
[425966420,1782052061000,-150.0,0.00011185,2]
[425966423,1782052088000,200.0,0.00011037,2]
[425966425,1782052114000,-1222.08739994,0.00011531,2]
[425966427,1782052130000,-1222.08739994,0.00011708,2]
[425966428,1782052132000,214.19,0.00011077,2]
[425966429,1782052150000,-431.78068,0.00011649,2]
[425966430,1782052151000,-1863.84260006,0.00011708,2]
[425966431,1782052151000,-200.0,0.00011844,2]
[425966433,1782052151000,-161.91782419,0.00011877,2]
[425966434,1782052151000,-742.1559959,0.00011878,2]
[425966432,1782052151000,-323.74,0.00011844,7]
[425966438,1782052203000,-250.0,0.00011678,2]
[425966450,1782052232000,-3123.70119972,0.00011888,2]
[425966442,1782052232000,-152.0,0.00011784,2]
[425966441,1782052232000,-150.0,0.00011194,2]
[425966443,1782052232000,-129.72491626,0.00011878,2]
[425966444,1782052232000,-1049.24108504,0.00011878,2]
[425966445,1782052232000,-474.20905484,0.00011878,2]
[425966446,1782052232000,-3128.73767524,0.00011878,2]
[425966448,1782052232000,-1744.35746894,0.00011882,2]
[425966449,1782052232000,-4427.50253106,0.00011882,2]
[425966451,1782052232000,-3048.15880028,0.00011888,2]
[425966447,1782052232000,-158.99,0.00011878,2]
[425966453,1782052232000,-1000.0,0.00011901,2]
[425966458,1782052232000,-9999.99,0.00011911,2]
[425966457,1782052232000,-999.99,0.00011911,2]
[425966459,1782052232000,-3415.9096753,0.00011921,2]
[425966454,1782052232000,-6171.86,0.00011903,2]
[425966452,1782052232000,-6171.86,0.00011895,2]
[425966461,1782052232000,-4999.99,0.00011921,2]
[425966462,1782052232000,-150.99,0.00011921,2]
[425966460,1782052232000,-2755.9503247,0.00011921,2]
[425966456,1782052232000,-7941.26,0.00011911,2]
[425966455,1782052232000,-6171.86,0.00011911,2]
[425966466,1782052233000,-6171.86,0.00011957,2]
[425966468,1782052233000,-6171.86,0.00011986,2]
[425966464,1782052233000,-6171.86,0.00011932,2]
[425966472,1782052233000,-3085.93,0.0001204,2]
[425966471,1782052233000,-6171.86,0.00012038,2]
[425966463,1782052233000,-299.99,0.00011921,2]
[425966467,1782052233000,-6171.86,0.00011971,2]
[425966465,1782052233000,-6171.86,0.00011944,2]
[425966469,1782052233000,-6171.86,0.00012002,2]
[425966473,1782052233000,-11288.39722676,0.00012045,2]
[425966470,1782052233000,-6171.86,0.0001202,2]
[425966475,1782052233000,-6171.86,0.00012057,2]
[425966485,1782052233000,-361.68472692,0.00012099,2]
[425966476,1782052233000,-474.5667029,0.00012077,2]
[425966487,1782052233000,-6171.86,0.00012121,2]
[425966478,1782052233000,-1296.66477383,0.00012077,2]
[425966479,1782052233000,-417.51182976,0.00012077,2]
[425966480,1782052233000,-971.72153587,0.00012077,2]
[425966486,1782052233000,-5642.12827228,0.00012099,2]
[425966482,1782052233000,-168.0470008,0.00012099,2]
[425966481,1782052233000,-2322.53214463,0.00012077,2]
[425966488,1782052233000,-6171.86,0.00012145,2]
[425966489,1782052233000,-5163.2785343,0.00012169,2]
[425966490,1782052233000,-956.53956243,0.00012169,2]
[425966477,1782052233000,-688.86301301,0.00012077,2]
[425966501,1782052237000,-52.04190327,0.00012169,2]
[425966500,1782052237000,-366.24764073,0.0001153,2]
[425966502,1782052237000,-364.80397981,0.00012195,2]
[425966503,1782052238000,-3486.72775957,0.00012195,2]
[425966711,1782052239000,-6171.86,0.00012249,2]
[425966725,1782052239000,-6171.86,0.00012436,2]
[425966714,1782052239000,-6171.86,0.00012277,2]
[425966716,1782052239000,-6171.86,0.00012307,2]
[425966709,1782052239000,-6171.86,0.00012221,2]
[425966707,1782052239000,-2500.0,0.00012207,2]
[425966705,1782052239000,-2320.32826062,0.00012195,2]
[425966722,1782052239000,-6171.86,0.00012402,2]
[425966739,1782052239000,-150.0,0.00012494,2]
[425966718,1782052239000,-6171.86,0.00012338,2]
[425966731,1782052239000,-6171.86,0.00012471,2]
[425966727,1782052239000,-6739.22,0.00012463,2]
[425966729,1782052239000,-3085.93,0.00012468,2]
[425966737,1782052239000,-152.0,0.00012494,2]
[425966733,1782052239000,-153.0,0.00012494,2]
[425966720,1782052239000,-6171.86,0.00012369,2]
[425966735,1782052239000,-150.0,0.00012494,2]
[425966790,1782052240000,-515.55433603,0.00013698,2]
[425966786,1782052240000,-500.0,0.00013698,2]
[425966788,1782052240000,-500.0,0.00013698,2]
[425966792,1782052240000,-500.0,0.00013698,2]
[425966795,1782052240000,-500.0,0.00013698,2]
[425966773,1782052240000,-500.0,0.00013698,2]
[425966799,1782052240000,-500.0,0.00013698,2]
[425966779,1782052240000,-500.0,0.00013698,2]
[425966777,1782052240000,-500.0,0.00013698,2]
[425966782,1782052240000,-524.95779422,0.00013698,2]
[425966801,1782052240000,-500.0,0.00013698,2]
[425966807,1782052240000,-500.0,0.00013698,2]
[425966805,1782052240000,-500.0,0.00013698,2]
[425966816,1782052240000,-330.14609478,0.0001378,2]
[425966775,1782052240000,-500.0,0.00013698,2]
[425966784,1782052240000,-500.0,0.00013698,2]
[425966764,1782052240000,-6171.86,0.00012923,2]
[425966768,1782052240000,-8452.01,0.0001301,2]
[425966803,1782052240000,-500.0,0.00013698,2]
[425966741,1782052240000,-6171.86,0.00012507,2]
[425966743,1782052240000,-6171.86,0.00012544,2]
[425966746,1782052240000,-158.99,0.00012577,2]
[425966750,1782052240000,-6171.86,0.00012621,2]
[425966752,1782052240000,-6171.86,0.00012661,2]
[425966771,1782052240000,-158.99,0.00013275,2]
[425966754,1782052240000,-6171.86,0.00012702,2]
[425966757,1782052240000,-1500.86028522,0.00012777,2]
[425966759,1782052240000,-250.0,0.00012814,2]
[425966761,1782052240000,-6171.86,0.00012831,2]
[425966762,1782052240000,-6171.86,0.00012877,2]
[425966756,1782052240000,-6171.86,0.00012744,2]
[425966766,1782052240000,-6171.86,0.0001297,2]
[425966758,1782052240000,-6171.86,0.00012787,2]
[425966797,1782052240000,-500.0,0.00013698,2]
[425966748,1782052240000,-6171.86,0.00012582,2]
[425966809,1782052240000,-500.0,0.00013698,2]
[425966859,1782052240000,-2299.27095023,0.0001578,2]
[425966857,1782052240000,-11288.39722674,0.00015434,2]
[425966853,1782052240000,-1500.8602852,0.0001508,2]
[425966861,1782052240000,-3110.9859,0.0001578,2]
[425966864,1782052240000,-1500.0,0.0001591,2]
[425966866,1782052240000,-300.0,0.00016,2]
[425966878,1782052240000,-158.99,0.00016769,2]
[425966876,1782052240000,-214.19,0.00016616,2]
[425966882,1782052240000,-290810.3885999,0.00016785,2]
[425966880,1782052240000,-111026.8600078,0.00016785,2]
[425966874,1782052240000,-1555.5,0.00016458,2]
[425966870,1782052240000,-7112.64491639,0.00016307,2]
[425966872,1782052240000,-151.0,0.00016316,2]
[425966891,1782052240000,-25470.25151895,0.00016785,2]
[425966814,1782052240000,-11288.39722674,0.0001374,2]
[425966855,1782052240000,-158.99,0.00015372,2]
[425966849,1782052240000,-500.0,0.00014999,2]
[425966868,1782052240000,-158.99,0.0001607,2]
[425966847,1782052240000,-500.0,0.00014999,2]
[425966851,1782052240000,-500.0,0.00014999,2]
[425966818,1782052240000,-158.99,0.00013974,2]
[425966822,1782052240000,-871.26076754,0.0001428,2]
[425966820,1782052240000,-250.0,0.00014,2]
[425966826,1782052240000,-250.0,0.00014564,2]
[425966835,1782052240000,-500.0,0.00014999,2]
[425966824,1782052240000,-1537.00726778,0.0001428,2]
[425966828,1782052240000,-158.99,0.00014673,2]
[425966812,1782052240000,-500.0,0.00013698,2]
[425966833,1782052240000,-500.0,0.00014999,2]
[425966839,1782052240000,-500.0,0.00014999,2]
[425966837,1782052240000,-500.0,0.00014999,2]
[425966841,1782052240000,-500.0,0.00014999,2]
[425966843,1782052240000,-500.0,0.00014999,2]
[425966845,1782052240000,-500.0,0.00014999,2]
[425966830,1782052240000,-7112.6449164,0.00014899,2]
[425966950,1782052242000,-600.0,0.00016785,2]
[425966975,1782052243000,-185.55416938,0.000195,2]
[425966974,1782052243000,-1107.45583696,0.000195,2]
[425966977,1782052243000,-1107.45583696,0.000197,2]
[425966973,1782052243000,-1817.9387343,0.00019198,2]
[425966971,1782052243000,-7112.64491639,0.00019123,2]
[425966972,1782052243000,-3000.28621703,0.00019178,2]
[425966979,1782052243000,-162.791075,0.00019726,2]
[425966989,1782052243000,-481.0,0.0002,2]
[425966986,1782052243000,-302.07358098,0.0002,2]
[425966985,1782052243000,-418.0,0.0002,2]
[425966981,1782052243000,-185.55416938,0.000199,2]
[425966984,1782052243000,-204.0,0.0002,2]
[425966980,1782052243000,-1107.45583696,0.000199,2]
[425966988,1782052243000,-151.0,0.0002,2]
[425966982,1782052243000,-150.0,0.0002,7]
[425966978,1782052243000,-185.55416938,0.000197,2]
[425966976,1782052243000,-1500.8602852,0.00019687,2]
[425966954,1782052243000,-78320.95425861,0.00016785,2]
[425966970,1782052243000,-11288.39722674,0.00018824,2]
[425966951,1782052243000,-13621.5499741,0.00016785,2]
[425966983,1782052243000,-156.0,0.0002,2]
[425966955,1782052243000,-1613.0535,0.00017006,2]
[425966953,1782052243000,-4.40358444,0.00016785,2]
[425966957,1782052243000,-160.0,0.00017147,2]
[425966958,1782052243000,-216.32317309,0.00017147,2]
[425966960,1782052243000,-1672.7364795,0.00017554,2]
[425966959,1782052243000,-1500.8602852,0.00017384,2]
[425966956,1782052243000,-11288.39722674,0.00017129,2]
[425966962,1782052243000,-500.0,0.00017764,2]
[425966964,1782052243000,-500.0,0.00017933,2]
[425966967,1782052243000,-500.0,0.00018192,2]
[425966961,1782052243000,-7112.64491639,0.00017715,2]
[425966965,1782052243000,-192.097321,0.00018,2]
[425966963,1782052243000,-153096.5169594,0.00017765,2]
[425966966,1782052243000,-1734.62772924,0.00018102,2]
[425966968,1782052243000,-1441.26,0.000182,2]
[425966969,1782052243000,-1798.80895522,0.0001865,2]
[425966991,1782052243000,-1107.45583696,0.000201,2]
[425966987,1782052243000,-157.0,0.0002,2]
[425966993,1782052243000,-2724.4655375,0.00020213,2]
[425967025,1782052243000,-152.0,0.00020509,2]
[425967026,1782052243000,-152.0,0.00020509,2]
[425967015,1782052243000,-578.20924308,0.00020509,2]
[425967024,1782052243000,-152.0,0.00020509,2]
[425967013,1782052243000,-156.84738482,0.00020509,2]
[425967019,1782052243000,-152.0,0.00020509,2]
[425967016,1782052243000,-159.51833467,0.00020509,2]
[425967014,1782052243000,-9211.34798984,0.00020509,2]
[425967018,1782052243000,-500.0,0.00020509,2]
[425967022,1782052243000,-152.0,0.00020509,2]
[425967017,1782052243000,-163.76126671,0.00020509,2]
[425967023,1782052243000,-151.0,0.00020509,2]
[425967027,1782052243000,-152.0,0.00020509,2]
[425967028,1782052243000,-152.0,0.00020509,2]
[425967029,1782052243000,-11288.39722674,0.00020518,2]
[425966992,1782052243000,-185.55416938,0.000201,2]
[425967020,1782052243000,-500.0,0.00020509,2]
[425967008,1782052243000,-151.0,0.00020294,2]
[425967021,1782052243000,-500.0,0.00020509,2]
[425967012,1782052243000,-500.0,0.00020509,2]
[425966990,1782052243000,-182.0,0.0002,2]
[425967005,1782052243000,-151.0,0.00020294,2]
[425966997,1782052243000,-500.0,0.00020294,2]
[425966999,1782052243000,-500.0,0.00020294,2]
[425966994,1782052243000,-279.8357851,0.00020294,2]
[425967000,1782052243000,-151.0,0.00020294,2]
[425966995,1782052243000,-500.0,0.00020294,2]
[425966998,1782052243000,-151.0,0.00020294,2]
[425967001,1782052243000,-500.0,0.00020294,2]
[425966996,1782052243000,-151.0,0.00020294,2]
[425967002,1782052243000,-151.0,0.00020294,2]
[425967010,1782052243000,-151.0,0.00020294,2]
[425967003,1782052243000,-151.0,0.00020294,2]
[425967004,1782052243000,-151.0,0.00020294,2]
[425967011,1782052243000,-1107.45583696,0.000203,2]
[425967007,1782052243000,-151.0,0.00020294,2]
[425967006,1782052243000,-151.0,0.00020294,2]
[425967009,1782052243000,-151.0,0.00020294,2]
[425967061,1782052244000,-250.0,0.00021918,8]
[425967055,1782052244000,-305.93,0.00021644,4]
[425967053,1782052244000,-156.84738482,0.00021605,2]
[425967054,1782052244000,-2620.22835017,0.00021605,2]
[425967057,1782052244000,-250.0,0.00021918,8]
[425967052,1782052244000,-537.6845,0.00021605,2]
[425967059,1782052244000,-250.0,0.00021918,8]
[425967051,1782052244000,-151.0,0.00021059,2]
[425967065,1782052244000,-250.0,0.00021918,8]
[425967060,1782052244000,-250.0,0.00021918,8]
[425967056,1782052244000,-5000.0,0.00021918,2]
[425967073,1782052244000,-418.0,0.00022,2]
[425967063,1782052244000,-250.0,0.00021918,8]
[425967068,1782052244000,-164.67771057,0.00021918,2]
[425967069,1782052244000,-7112.64491639,0.00021939,2]
[425967070,1782052244000,-1500.8602852,0.0002199,2]
[425967050,1782052244000,-9552.16786547,0.00021057,2]
[425967058,1782052244000,-250.0,0.00021918,8]
[425967044,1782052244000,-164.0,0.00021,2]
[425967035,1782052244000,-151.0,0.00020784,2]
[425967043,1782052244000,-157.0,0.00021,2]
[425967036,1782052244000,-151.0,0.00020839,2]
[425967031,1782052244000,-151.0,0.00020564,2]
[425967030,1782052244000,-7112.64491639,0.00020531,2]
[425967033,1782052244000,-151.0,0.00020674,2]
[425967034,1782052244000,-151.0,0.00020729,2]
[425967032,1782052244000,-151.0,0.00020619,2]